bitfinex-derivatives/quotes_ETHF0:USTF0_20250708
["timestamp","ask_amount","ask_price","bid_price","bid_amount"]
[1751952030624,28.1607,2546.1,2546.0,2.47142]
[1751952031320,28.1587,2546.1,2546.0,2.47142]
[1751952031522,30.33401476,2546.1,2546.0,2.47142]
[1751952031722,30.78831476,2546.1,2546.0,2.47142]
[1751952031923,30.33401476,2546.1,2546.0,2.47142]
[1751952032122,31.89321939,2546.1,2546.0,2.47142]
[1751952032522,32.34751939,2546.1,2546.0,2.47142]
[1751952033020,31.89321939,2546.1,2546.0,2.47142]
[1751952033422,32.34751939,2546.1,2546.0,2.47142]
[1751952034225,32.34770828,2546.1,2546.0,2.47142]
[1751952037824,33.13319828,2546.1,2546.0,2.47142]
[1751952038524,32.34770828,2546.1,2546.0,2.47142]
[1751952038926,33.13319828,2546.1,2546.0,2.47142]
[1751952039724,33.13418889,2546.1,2546.0,2.47142]
[1751952041131,32.34869889,2546.1,2546.0,2.47142]
[1751952043032,33.13418889,2546.1,2546.0,2.47142]
[1751952043231,30.95887413,2546.1,2546.0,2.47142]
[1751952044235,30.95887413,2546.1,2546.0,1.44382]
[1751952046227,30.95887413,2546.1,2546.0,0.78552]
[1751952046634,30.95887413,2546.1,2546.0,1.44382]
[1751952047237,30.95887413,2546.1,2546.0,0.78552]
[1751952047637,30.95887413,2546.1,2546.0,1.44382]
[1751952049341,30.17338413,2546.1,2545.6,2.60767]
[1751952049543,2.96089476,2545.9,2545.8,0.78555]
[1751952049835,30.91899889,2545.9,2545.8,1.44385]
[1751952050040,31.75219889,2545.9,2545.8,1.44385]
[1751952050443,32.53774889,2545.9,2545.8,1.44385]
[1751952050838,32.98944889,2545.9,2545.8,1.44385]
[1751952051141,32.53774889,2545.9,2545.8,1.44385]
[1751952051544,32.98944889,2545.9,2545.8,1.44385]
[1751952053439,32.20389889,2545.9,2545.8,1.44385]
[1751952053639,30.02858413,2545.9,2545.8,1.44385]
[1751952053838,30.02858413,2545.9,2545.8,2.42205]
[1751952056344,30.01958413,2545.9,2545.8,2.42205]
[1751952058946,29.56288413,2545.9,2545.8,2.42205]
[1751952059242,30.01458413,2545.9,2545.8,2.42205]
[1751952059546,29.56288413,2545.9,2545.8,2.42205]
[1751952060745,2.84788413,2545.9,2545.8,2.42205]
[1751952060946,29.56288413,2545.9,2545.8,2.42205]
[1751952061446,30.01458413,2545.9,2545.8,2.42205]
[1751952061947,29.56288413,2545.9,2545.8,2.42205]
[1751952062246,30.01458413,2545.9,2545.8,2.42205]
[1751952063543,30.80013413,2545.9,2545.8,1.44385]
[1751952064744,0.78561,2545.8,2545.7,0.78559]
[1751952064945,5.82000889,2545.8,2545.7,0.78559]
[1751952066041,5.03439889,2545.8,2545.7,0.78559]
[1751952066249,5.03439889,2545.8,2545.7,1.43229]
[1751952066546,5.48609889,2545.8,2545.7,1.43229]
[1751952068143,5.03439889,2545.8,2545.7,0.78559]
[1751952068337,3.31078413,2545.8,2545.7,1.43231]
[1751952068543,2.85908413,2545.8,2545.7,1.43231]
[1751952068842,28.27538413,2545.8,2545.7,1.43231]
[1751952069949,28.27538413,2545.8,2545.7,2.41051]
[1751952072155,28.72708413,2545.8,2545.7,2.41051]
[1751952073149,2.01208413,2545.8,2545.7,2.41051]
[1751952073350,28.73708413,2545.8,2545.7,2.41051]
[1751952074049,28.73408413,2545.8,2545.7,2.41051]
[1751952074750,2.01208413,2545.8,2545.7,2.41051]
[1751952074952,28.28138413,2545.8,2545.7,2.41051]
[1751952075346,1.56038413,2545.8,2545.7,2.41051]
[1751952075554,28.27938413,2545.8,2545.7,2.41051]
[1751952077249,28.27538413,2545.8,2545.7,2.41051]
[1751952077449,28.27538413,2545.8,2545.7,4.58582476]
[1751952078254,28.27538413,2545.8,2545.7,2.41051]
[1751952080356,28.27823257,2545.8,2545.7,2.41051]
[1751952083159,28.27823257,2545.8,2545.7,4.58582476]
[1751952084857,1.56323257,2545.8,2545.7,4.58582476]
[1751952085257,0.6484,2546.2,2546.1,0.78549]
[1751952085555,0.6484,2546.2,2546.1,2.46909]
[1751952085556,29.38186504,2546.2,2546.1,2.46909]
[1751952085959,30.16732504,2546.2,2546.1,1.48729]
[1751952086159,29.38186504,2546.2,2546.1,1.48729]
[1751952086759,30.16732504,2546.2,2546.1,1.48729]
[1751952087063,29.38186504,2546.2,2546.1,1.48729]
[1751952087657,29.38186504,2546.2,2546.1,2.46909]
[1751952090362,2.66686504,2546.2,2546.1,2.46909]
[1751952090658,29.38086504,2546.2,2546.1,2.46909]
[1751952091858,2.01846504,2546.2,2546.1,2.46909]
[1751952092062,6.2499926,2546.8,2546.7,0.7853]
[1751952092272,6.2499926,2546.8,2546.7,0.7018]
[1751952092273,27.378,2546.8,2546.7,0.7018]
[1751952092565,27.378,2546.8,2546.7,1.4871]
[1751952092866,0.665,2546.8,2546.7,1.4871]
[1751952093066,27.8336,2546.8,2546.7,2.4689]
[1751952093260,1.1206,2546.8,2546.7,2.4689]
[1751952093564,27.8336,2546.8,2546.7,2.4689]
[1751952094160,27.8336,2546.8,2546.7,3.1412]
[1751952094356,28.61887,2546.8,2546.7,3.1412]
[1751952094559,27.8336,2546.8,2546.7,3.1412]
[1751952094862,28.61887,2546.8,2546.7,3.1412]
[1751952095054,28.61887,2546.8,2546.2,1.96361]
[1751952095055,30.00891476,2546.8,2546.5,0.78535]
[1751952095265,2.96067476,2546.6,2546.5,0.78535]
[1751952095460,0.78539,2546.5,2546.4,0.78538]
[1751952095769,0.6617,2546.5,2546.4,0.78538]
[1751952095959,0.6617,2546.5,2546.4,1.48718]
[1751952096359,1.44707,2546.5,2546.4,1.48718]
[1751952096561,1.44707,2546.5,2546.4,0.78538]
[1751952096864,1.44707,2546.5,2546.2,2.94544]
[1751952096865,0.78543,2546.3,2546.2,0.9818]
[1751952097058,29.67974476,2546.3,2546.2,0.9818]
[1751952098563,0.78552,2546.0,2545.9,0.78554]
[1751952098764,27.51152,2546.0,2545.9,0.78554]
[1751952099067,27.51152,2546.0,2545.9,1.48734]
[1751952100369,27.96712,2546.0,2545.9,1.48734]
[1751952103971,29.52163994,2546.0,2545.9,1.48734]
[1751952104179,29.52163994,2546.0,2545.9,0.7018]
[1751952104770,29.06603994,2546.0,2545.9,1.48735]
[1751952105171,29.52163994,2546.0,2545.9,1.48735]
[1751952106272,2.01011994,2546.0,2545.9,1.48735]
[1751952106571,2.01011994,2546.0,2545.9,2.46915]
[1751952106768,30.01271994,2546.0,2545.9,2.46915]
[1751952106968,30.79823994,2546.0,2545.9,2.46915]
[1751952107170,30.01271994,2546.0,2545.9,2.46915]
[1751952110874,30.79823994,2546.0,2545.9,2.46915]
[1751952111576,30.01271994,2546.0,2545.9,2.46915]
[1751952111875,30.79823994,2546.0,2545.9,2.46915]
[1751952112077,30.79823994,2546.0,2545.9,1.48735]
[1751952113973,4.08323994,2546.0,2545.9,2.49485]
[1751952114175,1.7432,2546.0,2545.9,4.67016476]
[1751952114376,1.44908,2546.2,2546.1,0.78549]
[1751952114675,2.95061037,2546.2,2546.1,4.64880476]
[1751952114978,28.26981037,2546.2,2546.1,4.64880476]
[1751952115180,26.715,2546.2,2546.1,4.64880476]
[1751952115378,28.26967632,2546.2,2546.1,4.64880476]
[1751952115581,26.715,2546.2,2546.1,4.64880476]
[1751952117776,3.894,2546.3,2546.2,0.78546]
[1751952117983,30.607,2546.3,2546.2,1.46596]
[1751952118171,3.894,2546.3,2546.2,2.47346]
[1751952118372,32.16802741,2546.3,2546.2,2.47346]
[1751952118683,5.44802741,2546.3,2546.2,2.47346]
[1751952118881,30.614,2546.3,2546.2,2.47346]
[1751952119080,26.72,2546.3,2546.2,2.47346]
[1751952120084,1.3958,2546.5,2546.4,0.7854]
[1751952120285,28.1158,2546.5,2546.4,1.4659]
[1751952120486,28.1138,2546.5,2546.4,2.4734]
[1751952120781,71.0293,2546.7,2546.6,0.78533]
[1751952120988,97.7463,2546.7,2546.6,1.46583]
[1751952121183,99.0373,2546.7,2546.6,1.46583]
[1751952122180,64.81064514,2546.7,2546.6,2.47333]
[1751952122382,62.84864514,2546.7,2546.6,2.47333]
[1751952122586,26.718,2546.7,2546.6,2.47333]
[1751952122785,26.718,2546.7,2546.6,3.17343]
[1751952122981,8.278,2546.8,2546.7,0.7853]
[1751952123189,36.54934884,2546.8,2546.7,1.4658]
[1751952123488,37.00054884,2546.8,2546.7,2.4733]
[1751952123786,36.54934884,2546.8,2546.7,4.64861476]
[1751952125090,37.00054884,2546.8,2546.7,4.64861476]
[1751952125783,37.00054884,2546.8,2546.7,2.4733]
[1751952126490,10.28254884,2546.8,2546.7,2.4733]
[1751952126687,10.28254884,2546.8,2546.7,4.64861476]
[1751952126893,36.54134884,2546.8,2546.7,4.64861476]
[1751952127295,34.988,2546.8,2546.7,4.64861476]
[1751952127595,36.53982226,2546.8,2546.7,4.64861476]
[1751952127896,34.988,2546.8,2546.7,4.64861476]
[1751952128396,3.894,2547.2,2547.1,0.78518]
[1751952128593,33.39169861,2547.2,2547.1,1.46568]
[1751952128896,34.77039861,2547.2,2547.1,1.46568]
[1751952129402,33.98524861,2547.2,2547.1,1.46568]
[1751952129704,34.77039861,2547.2,2547.1,1.46568]
[1751952130597,33.98524861,2547.2,2547.1,1.46568]
[1751952131195,33.98524861,2547.2,2547.1,2.47318]
[1751952131600,34.77039861,2547.2,2547.1,2.47318]
[1751952131795,34.77039861,2547.2,2547.1,1.46568]
[1751952131995,33.53404861,2547.2,2547.1,1.46568]
[1751952132302,33.98424861,2547.2,2547.1,1.46568]
[1751952134001,34.76939861,2547.2,2547.1,1.46568]
[1751952135402,8.06039861,2547.2,2547.1,1.46568]
[1751952135596,34.76739861,2547.2,2547.1,2.47318]
[1751952136703,30.08824861,2547.2,2547.1,2.47318]
[1751952136999,30.08724861,2547.2,2547.1,2.47318]
[1751952137199,30.87239861,2547.2,2547.1,2.47318]
[1751952137400,29.32105,2547.2,2547.1,2.47318]
[1751952138806,29.32105,2547.2,2547.1,1.46568]
[1751952140002,28.5359,2547.2,2547.1,2.47318]
[1751952140306,29.32105,2547.2,2547.1,2.47318]
[1751952141102,28.5359,2547.2,2547.1,2.47318]
[1751952141305,30.07470571,2547.2,2547.1,2.47318]
[1751952141698,29.32105,2547.2,2547.1,2.47318]
[1751952142000,28.5339,2547.2,2547.1,2.47318]
[1751952142202,30.07267526,2547.2,2547.1,2.47318]
[1751952145003,3.36867526,2547.2,2547.1,2.47318]
[1751952145302,1.53877526,2547.2,2547.1,2.47318]
[1751952145503,28.24177526,2547.2,2547.1,2.47318]
[1751952145898,1.53877526,2547.2,2547.1,2.47318]
[1751952146100,28.24177526,2547.2,2547.1,2.47318]
[1751952147006,28.24419725,2547.2,2547.1,2.47318]
[1751952148900,28.69669725,2547.2,2547.1,2.47318]
[1751952149199,28.24319725,2547.2,2547.1,2.47318]
[1751952150199,1.54119725,2547.2,2547.1,2.47318]
[1751952150405,28.24319725,2547.2,2547.1,2.47318]
[1751952151201,1.54119725,2547.2,2547.1,2.47318]
[1751952151406,28.24319725,2547.2,2547.1,2.47318]
[1751952151608,1.54119725,2547.2,2547.1,2.47318]
[1751952151904,27.1545,2547.2,2547.1,2.47318]
[1751952152105,26.702,2547.2,2547.1,2.47318]
[1751952152304,28.24399874,2547.2,2547.1,2.47318]
[1751952153505,28.24399874,2547.2,2547.1,4.64849476]
[1751952155303,28.69649874,2547.2,2547.1,4.64849476]
[1751952155502,28.24399874,2547.2,2547.1,4.64849476]
[1751952155906,28.69649874,2547.2,2547.1,4.64849476]
[1751952156102,28.24399874,2547.2,2547.1,4.64849476]
[1751952156504,28.69649874,2547.2,2547.1,4.64849476]
[1751952156705,28.24399874,2547.2,2547.1,4.64849476]
[1751952156905,2.88369874,2547.2,2547.1,4.64849476]
[1751952157108,29.58369874,2547.2,2547.1,4.64849476]
[1751952157306,30.03619874,2547.2,2547.1,4.64849476]
[1751952158710,30.03619874,2547.2,2547.1,2.51638]
[1751952159209,30.82134874,2547.2,2547.1,2.51638]
[1751952159410,30.03619874,2547.2,2547.1,2.51638]
[1751952159813,30.82134874,2547.2,2547.1,2.51638]
[1751952160608,30.82134874,2547.2,2547.1,0.78518]
[1751952161208,30.03619874,2547.2,2547.1,0.78518]
[1751952161609,30.03619874,2547.2,2547.1,1.43628]
[1751952162012,30.82134874,2547.2,2547.1,1.43628]
[1751952162412,30.03619874,2547.2,2547.1,1.43628]
[1751952164214,30.82134874,2547.2,2547.1,1.43628]
[1751952164512,30.82134874,2547.2,2547.1,0.78518]
[1751952164808,30.03619874,2547.2,2547.1,0.78518]
[1751952165313,30.03619874,2547.2,2547.1,1.43628]
[1751952165914,30.03619874,2547.2,2547.1,2.48698]
[1751952168114,30.03519874,2547.2,2547.1,2.48698]
[1751952173320,30.82034874,2547.2,2547.1,0.78518]
[1751952174018,30.82034874,2547.2,2547.1,1.45108]
[1751952174418,30.82034874,2547.2,2547.1,0.78518]
[1751952174919,30.82034874,2547.2,2547.1,1.45108]
[1751952175118,30.82034874,2547.2,2547.1,0.78518]
[1751952175520,30.82034874,2547.2,2547.1,1.45108]
[1751952177321,30.03519874,2547.2,2547.1,1.45108]
[1751952177922,30.82034874,2547.2,2547.1,1.45108]
[1751952178124,30.03519874,2547.2,2547.1,1.45108]
[1751952179123,30.82034874,2547.2,2547.1,1.45108]
[1751952179324,30.03519874,2547.2,2547.1,1.45108]
[1751952180423,30.82034874,2547.2,2547.1,1.45108]
[1751952181324,30.03519874,2547.2,2547.1,1.45108]
[1751952181826,30.82034874,2547.2,2547.1,1.45108]
[1751952182125,30.03756081,2547.2,2547.1,1.45108]
[1751952183021,30.03756081,2547.2,2547.1,2.44848]
[1751952184725,28.24236081,2547.2,2547.1,2.44848]
[1751952187224,28.69676081,2547.2,2547.1,2.44848]
[1751952188126,28.69676081,2547.2,2547.1,0.6659]
[1751952188328,29.48191081,2547.2,2547.1,1.45108]
[1751952188520,28.69676081,2547.2,2547.1,1.45108]
[1751952188926,29.97416081,2547.2,2547.1,1.45108]
[1751952189326,29.97416081,2547.2,2547.1,2.44848]
[1751952190430,28.69676081,2547.2,2547.1,2.44848]
[1751952192529,1.99876081,2547.2,2547.1,2.44848]
[1751952192724,28.24036081,2547.2,2547.1,2.44848]
[1751952196735,1.54436081,2547.2,2547.1,2.44848]
[1751952196935,28.23936081,2547.2,2547.1,2.44848]
[1751952197832,2.3488597,2547.5,2547.4,0.78509]
[1751952198035,2.3488597,2547.8,2547.5,1.96264]
[1751952198235,26.695,2547.9,2547.7,3.62621476]
[1751952198428,2.3488597,2548.2,2548.1,0.78487]
[1751952198625,30.3451597,2548.2,2548.1,1.45077]
[1751952198832,4.1045597,2548.2,2548.1,2.44817]
[1751952199136,1.7557,2548.2,2548.1,2.44817]
[1751952199634,0.6754,2548.4,2548.3,0.78481]
[1751952199933,29.1542,2548.4,2548.3,1.45071]
[1751952200237,1.3305,2548.4,2548.3,2.44811]
[1751952200436,28.0255,2548.4,2548.3,2.44811]
[1751952201026,1.7838,2548.4,2548.3,2.44811]
[1751952201234,28.4788,2548.4,2548.3,1.45071]
[1751952201428,28.4788,2548.4,2548.1,0.9974]
[1751952201635,2.11532,2548.3,2548.2,0.78484]
[1751952201830,2.56862,2548.3,2548.2,1.48454]
[1751952202634,2.11532,2548.3,2548.2,1.48454]
[1751952203136,2.56862,2548.3,2548.2,0.6997]
[1751952203532,0.78487,2548.1,2548.0,1.42189]
[1751952203728,1.23817,2548.1,2548.0,1.48459]
[1751952203933,1.23817,2548.1,2548.0,2.52059]
[1751952203934,0.78487,2548.1,2548.0,2.52059]
[1751952204135,2.10517,2548.1,2548.0,2.52059]
[1751952204328,2.55847,2548.1,2548.0,0.6997]
[1751952204533,2.55849,2548.1,2548.0,0.7849]
[1751952204737,2.55849,2548.1,2548.0,1.4846]
[1751952205740,29.24749,2548.1,2548.0,0.6997]
[1751952206534,28.4626,2548.1,2547.9,0.78491]
[1751952206738,2.1553,2548.0,2547.9,0.78491]
[1751952206940,2.6086,2548.0,2547.9,1.48461]
[1751952207132,2.1553,2548.0,2547.9,1.48461]
[1751952207337,2.6086,2548.0,2547.9,1.48461]
[1751952208445,2.6086,2548.0,2547.9,0.6997]
[1751952208638,2.6086,2548.0,2547.9,1.48463]
[1751952209140,0.78497,2547.9,2547.8,0.78494]
[1751952209340,2.57397,2547.9,2547.8,0.78494]
[1751952209541,2.57397,2547.9,2547.8,1.48464]
[1751952209842,2.12397,2547.9,2547.8,1.48464]
[1751952210036,2.57397,2547.9,2547.8,1.48464]
[1751952210639,2.12397,2547.9,2547.8,1.48464]
[1751952210833,2.57397,2547.9,2547.8,0.78494]
[1751952211440,1.789,2547.9,2547.8,2.52064]
[1751952211643,28.476,2547.9,2547.8,2.52064]
[1751952212745,0.6629,2548.2,2547.8,2.52064]
[1751952212746,8.9309,2548.2,2548.1,0.78487]
[1751952212953,37.59155102,2548.2,2548.1,1.48457]
[1751952213144,37.14155102,2548.2,2548.1,1.48457]
[1751952213539,37.59155102,2548.2,2548.1,1.48457]
[1751952213747,37.92541102,2548.2,2548.1,1.48457]
[1751952213943,38.37541102,2548.2,2548.1,1.48457]
[1751952214643,38.37541102,2548.2,2548.1,2.52057]
[1751952216043,10.90455102,2548.2,2548.1,2.52057]
[1751952216347,38.37539102,2548.2,2548.1,2.52057]
[1751952216549,39.71529102,2548.2,2548.1,2.52057]
[1751952216848,3.97645102,2548.2,2548.1,2.52057]
[1751952217048,29.54955102,2548.2,2548.1,4.69588476]
[1751952217251,28.0259,2548.2,2548.1,4.69588476]
[1751952218946,29.5428883,2548.2,2548.1,4.69588476]
[1751952219249,29.9928883,2548.2,2548.1,4.69588476]
[1751952219450,30.7777383,2548.2,2548.1,2.52057]
[1751952219650,29.9928883,2548.2,2548.1,2.52057]
[1751952220359,30.7777283,2548.2,2548.1,2.52057]
[1751952220647,0.78484,2548.3,2548.2,0.78481]
[1751952220853,29.4373058,2548.3,2548.2,1.48451]
[1751952221058,30.3933058,2548.3,2548.2,1.48451]
[1751952221448,30.8433058,2548.3,2548.2,1.48451]
[1751952221652,30.8433058,2548.3,2548.2,0.78481]
[1751952222043,30.8433058,2548.3,2548.2,1.48451]
[1751952222244,30.0584658,2548.3,2548.2,2.52051]
[1751952222551,4.1582758,2548.3,2548.2,2.52051]
[1751952222755,30.8422758,2548.3,2548.2,2.52051]
[1751952224458,0.78484,2548.2,2548.1,0.78486]
[1751952224651,3.6522058,2548.2,2548.1,0.78486]
[1751952224851,3.6522058,2548.2,2548.1,1.48456]
[1751952229662,4.1022058,2548.2,2548.1,2.52056]
[1751952229963,3.6522058,2548.2,2548.1,0.78486]
[1751952230160,3.6522058,2548.2,2548.1,2.49346]
[1751952230664,4.1055058,2548.2,2548.1,2.49346]
[1751952231056,3.6522058,2548.2,2548.1,2.49346]
[1751952231367,4.1055058,2548.2,2548.1,2.49346]
[1751952232667,30.7895058,2548.2,2548.1,2.49346]
[1751952237471,30.0046658,2548.2,2548.1,2.49346]
[1751952237766,1.5174658,2548.2,2548.1,2.49346]
[1751952238070,26.684,2548.2,2548.1,2.49346]
[1751952238272,1.5174658,2548.2,2548.1,2.49346]
[1751952238470,28.2014658,2548.2,2548.1,2.49346]
[1751952239779,1.5174658,2548.2,2548.1,2.49346]
[1751952239976,28.2014658,2548.2,2548.1,2.49346]
[1751952243676,29.4396158,2548.2,2548.1,2.49346]
[1751952243875,29.4396158,2548.2,2548.0,2.17531476]
[1751952243876,0.78491,2548.1,2548.0,0.78488]
[1751952244178,4.7509758,2548.1,2548.0,1.45748]
[1751952247276,4.7509758,2548.1,2547.9,1.0346]
[1751952247577,0.684,2548.1,2548.0,0.78491]
[1751952247768,2.20666824,2548.1,2548.0,0.78491]
[1751952247973,1.52266824,2548.1,2548.0,3.60142476]
[1751952248277,28.20566824,2548.1,2548.0,3.60142476]
[1751952249074,28.20566824,2548.1,2548.0,5.30862476]
[1751952252970,1.52266824,2548.1,2548.0,5.30862476]
[1751952254778,0.6495,2548.4,2548.3,0.78482]
[1751952254982,27.3325,2548.4,2548.3,1.45742]
[1751952255289,29.31202485,2548.4,2548.3,2.49202]
[1751952255579,28.85872485,2548.4,2548.3,2.49202]
[1751952255781,29.31202485,2548.4,2548.3,2.49202]
[1751952255980,29.31202485,2548.4,2548.3,3.12862]
[1751952259981,2.62902485,2548.4,2548.3,3.12862]
[1751952260186,1.52622485,2548.4,2548.3,3.12862]
[1751952260383,28.20822485,2548.4,2548.3,3.12862]
[1751952261388,28.66032485,2548.4,2548.3,3.12862]
[1751952261589,28.20822485,2548.4,2548.3,3.12862]
[1751952262488,28.66032485,2548.4,2548.3,3.12862]
[1751952266994,1.97832485,2548.4,2548.3,3.12862]
[1751952267184,28.65832485,2548.4,2548.3,3.12862]
[1751952267592,1.52622485,2548.4,2548.3,3.12862]
[1751952267792,28.20622485,2548.4,2548.3,3.12862]
[1751952268392,1.52622485,2548.4,2548.3,3.12862]
[1751952270895,27.962,2548.7,2548.6,0.78472]
[1751952271091,29.48631179,2548.7,2548.6,1.44532]
[1751952271294,29.93841179,2548.7,2548.6,2.42882]
[1751952276498,30.72310179,2548.7,2548.6,2.42882]
[1751952276695,29.93841179,2548.7,2548.6,2.42882]
[1751952277594,30.72310179,2548.7,2548.6,2.42882]
[1751952278097,29.93673011,2548.7,2548.6,2.42882]
[1751952278998,30.72142011,2548.7,2548.6,2.42882]
[1751952279998,29.93673011,2548.7,2548.6,2.42882]
[1751952280499,30.72142011,2548.7,2548.6,2.42882]
[1751952280802,4.04142011,2548.7,2548.6,1.44532]
[1751952280996,30.71842011,2548.7,2548.6,1.44532]
[1751952284809,4.04142011,2548.7,2548.6,1.44532]
[1751952285007,30.71842011,2548.7,2548.6,1.44532]
[1751952287109,30.71842011,2548.7,2548.6,2.42882]
[1751952287402,29.93373011,2548.7,2548.6,2.42882]
[1751952287809,3.25673011,2548.7,2548.6,2.42882]
[1751952288007,29.93273011,2548.7,2548.6,2.42882]
[1751952288507,29.93273011,2548.7,2548.6,1.44532]
[1751952288699,3.25673011,2548.7,2548.6,2.42882]
[1751952288904,29.93273011,2548.7,2548.6,2.42882]
[1751952289205,3.25673011,2548.7,2548.6,4.60413476]
[1751952289404,29.48063011,2548.7,2548.6,4.60413476]
[1751952290201,2.80463011,2548.7,2548.6,4.60413476]
[1751952290404,29.47963011,2548.7,2548.6,4.60413476]
[1751952291607,29.93143011,2548.7,2548.6,4.60413476]
[1751952295011,29.93143011,2548.7,2548.6,4.16347594]
[1751952302812,29.93143011,2548.7,2548.6,2.42882]
[1751952303011,29.93143011,2548.7,2548.6,4.16347594]
[1751952304712,1.52263011,2548.7,2548.6,4.16347594]
[1751952304912,28.19363011,2548.7,2548.6,4.16347594]
[1751952305314,28.19062441,2548.7,2548.6,4.16347594]
[1751952305513,26.671,2548.7,2548.6,4.16347594]
[1751952307718,4.52655594,2549.0,2548.9,0.78463]
[1751952308017,32.71616087,2549.0,2548.9,0.78463]
[1751952308315,33.16796087,2549.0,2548.9,0.78463]
[1751952309318,31.43330493,2549.0,2548.9,0.78463]
[1751952309518,33.16796087,2549.0,2548.9,0.78463]
[1751952310819,0.78467,2548.9,2548.8,0.78463]
[1751952311020,5.80313087,2548.9,2548.8,0.78463]
[1751952312317,5.80313087,2548.9,2548.8,2.41043]
[1751952312522,5.80313087,2548.9,2548.8,1.43383]
[1751952312523,4.56666087,2548.9,2548.8,1.43383]
[1751952312724,5.01846087,2548.9,2548.8,1.43383]
[1751952314019,5.80309087,2548.9,2548.8,1.43383]
[1751952314530,5.01846087,2548.9,2548.8,1.43383]
[1751952314732,5.80309087,2548.9,2548.8,0.78463]
[1751952315929,5.80309087,2548.9,2548.4,1.96191]
[1751952315930,5.30136087,2548.9,2548.4,1.96191]
[1751952316231,0.78474,2548.7,2548.6,0.7847]
[1751952316431,4.49080087,2548.7,2548.6,0.7847]
[1751952316738,6.54880087,2548.7,2548.6,0.7847]
[1751952318729,6.09700087,2548.7,2548.6,1.4339]
[1751952318930,6.54880087,2548.7,2548.6,1.4339]
[1751952319236,6.54880087,2548.7,2548.6,0.7847]
[1751952319437,3.57760493,2548.7,2548.3,0.9766]
[1751952319637,32.07750087,2548.6,2548.3,0.9766]
[1751952319832,2.88910493,2548.5,2548.4,0.78478]
[1751952320233,3.34110493,2548.5,2548.4,1.47878]
[1751952320434,2.88910493,2548.5,2548.4,1.47878]
[1751952321036,3.34110493,2548.5,2548.4,1.47878]
[1751952323435,4.12585493,2548.5,2548.4,1.47878]
[1751952323832,3.67385493,2548.5,2548.4,1.47878]
[1751952324033,4.12585493,2548.5,2548.4,1.47878]
[1751952324231,3.67385493,2548.5,2548.4,1.47878]
[1751952324432,4.12585493,2548.5,2548.4,1.47878]
[1751952325539,0.78488,2548.2,2548.1,0.78485]
[1751952325738,29.64053594,2548.2,2548.1,0.78485]
[1751952325934,31.16014087,2548.2,2548.1,0.78485]
[1751952326136,29.42548493,2548.2,2548.1,4.24620594]
[1751952326335,1.51960493,2548.2,2548.1,4.24620594]
[1751952326640,28.18860493,2548.2,2548.1,4.24620594]
[1751952326840,28.18860493,2548.2,2548.1,2.51155]
[1751952327842,28.64060493,2548.2,2548.1,2.51155]
[1751952328140,28.18860493,2548.2,2548.1,2.51155]
[1751952328532,1.51960493,2548.2,2548.1,2.51155]
[1751952328737,4.5066597,2548.7,2548.6,0.78472]
[1751952328936,33.14832103,2548.7,2548.6,1.47872]
[1751952329338,30.34746133,2548.7,2548.6,1.47872]
[1751952329641,30.79946133,2548.7,2548.6,1.47872]
[1751952329843,30.34746133,2548.7,2548.6,1.47872]
[1751952330045,30.79946133,2548.7,2548.6,1.47872]
[1751952330345,30.34746133,2548.7,2548.6,1.47872]
[1751952330540,30.79946133,2548.7,2548.6,1.47872]
[1751952331742,30.01476133,2548.7,2548.6,1.47872]
[1751952332043,0.78472,2548.6,2548.5,0.78473]
[1751952332244,3.71268133,2548.6,2548.5,0.78473]
[1751952332446,3.71268133,2548.6,2548.5,1.47873]
[1751952333245,4.16468133,2548.6,2548.5,1.47873]
[1751952334146,4.16468133,2548.6,2548.5,0.78473]
[1751952334346,4.16468133,2548.6,2548.5,1.47873]
[1751952334648,0.78475,2548.5,2548.4,0.78476]
[1751952334844,30.34301133,2548.5,2548.4,0.78476]
[1751952335246,30.79281133,2548.5,2548.4,1.47876]
[1751952335645,30.00806133,2548.5,2548.4,2.51146]
[1751952335950,30.79281133,2548.5,2548.4,2.51146]
[1751952336148,30.79181133,2548.5,2548.4,2.51146]
[1751952336451,30.79157638,2548.5,2548.4,2.51146]
[1751952337848,30.79157638,2548.5,2548.4,1.47876]
[1751952338749,31.44557638,2548.5,2548.4,0.694]
[1751952338949,31.44557638,2548.5,2548.3,1.4589]
[1751952338950,0.78478,2548.4,2548.3,1.4589]
[1751952339152,2.51998,2548.4,2548.3,2.1529]
[1751952339345,2.07018,2548.4,2548.3,2.1529]
[1751952339648,2.51998,2548.4,2548.3,2.1529]
[1751952339949,0.78486,2548.3,2548.2,0.78483]
[1751952340248,30.70719575,2548.3,2548.2,0.78483]
[1751952340450,0.78487,2548.2,2548.1,0.78485]
[1751952340646,3.58840575,2548.2,2548.1,0.78485]
[1751952340843,3.58840575,2548.2,2548.1,1.47885]
[1751952341042,4.25560575,2548.2,2548.1,1.47885]
[1751952341244,4.70540575,2548.2,2548.1,1.47885]
[1751952342048,3.18727,2548.2,2548.1,1.47885]
[1751952342249,4.70547091,2548.2,2548.1,1.47885]
[1751952342448,3.18727,2548.2,2548.1,1.47885]
[1751952342748,4.70572417,2548.2,2548.1,1.47885]
[1751952343149,28.63725417,2548.2,2548.1,3.6479846]
[1751952344139,28.18745417,2548.2,2548.1,2.9539846]
[1751952344350,28.18745417,2548.2,2548.1,4.6806846]
[1751952347149,1.51845417,2548.2,2548.1,4.6806846]
[1751952347351,3.894,2548.5,2548.4,0.78478]
[1751952347655,5.41288495,2548.5,2548.4,4.6806146]
[1751952348754,3.894,2548.5,2548.4,4.6806146]
[1751952352750,2.08843,2548.9,2548.4,4.6806146]
[1751952352751,1.3038,2548.9,2548.8,0.78466]
[1751952352951,29.9373019,2548.9,2548.8,1.43066]
[1751952353548,29.9373019,2548.9,2548.8,2.48026]
[1751952355554,30.7219319,2548.9,2548.8,2.48026]
[1751952355758,29.9373019,2548.9,2548.8,2.48026]
[1751952355953,30.6106019,2548.9,2548.8,2.48026]
[1751952356152,30.6106019,2548.9,2548.8,1.43066]
[1751952356353,31.3952319,2548.9,2548.8,1.43066]
[1751952357059,31.3952319,2548.9,2548.7,0.78466]
[1751952357060,0.78466,2548.8,2548.7,0.78466]